bitfinex/quotes_ETHUSD_20251119
["timestamp","ask_amount","ask_price","bid_price","bid_amount"]
[1763562676791,0.4551,3037.0,3035.4,3.78445797]
[1763562676991,0.04115361,3037.4,3035.7,5.80762282]
[1763562677215,0.1951,3038.0,3035.8,1.39699264]
[1763562677401,0.4551,3037.8,3036.0,5.80762282]
[1763562677613,0.4551,3037.8,3036.1,0.688]
[1763562677820,0.1951,3038.0,3036.2,1.13956228]
[1763562678240,0.49624684,3037.9,3035.6,0.49]
[1763562678534,0.49624684,3037.9,3036.0,5.80762282]
[1763562678699,0.04114819,3037.8,3036.0,5.80762282]
[1763562678899,0.4551,3037.9,3036.1,0.688]
[1763562679417,0.4551,3037.9,3036.2,0.49]
[1763562679623,0.1951,3038.0,3036.2,0.607]
[1763562679825,0.002,3038.6,3037.2,5.80762282]
[1763562680025,0.002,3038.6,3038.4,5.80762282]
[1763562680202,0.002,3038.6,3038.5,0.49]
[1763562680534,0.002,3038.6,3038.5,3.78109758]
[1763562680692,0.002,3038.7,3038.5,3.78109758]
[1763562680897,0.002,3039.3,3038.9,6.90068033]
[1763562681495,0.002,3039.3,3038.5,3.89806232]
[1763562681695,0.002,3039.3,3038.0,0.90699264]
[1763562681696,0.002,3039.3,3038.0,0.49]
[1763562682310,0.4551,3039.2,3037.5,3.78217416]
[1763562682630,0.04312789,3039.3,3037.6,0.688]
[1763562682835,0.002,3039.3,3037.6,0.688]
[1763562683139,0.002,3039.3,3037.8,0.90699264]
[1763562683309,0.002,3039.3,3037.9,0.49]
[1763562683514,0.51656803,3039.0,3037.9,0.49]
[1763562684039,0.6913333,3038.9,3037.2,0.49]
[1763562684208,0.6502,3038.9,3037.2,3.78250263]
[1763562684398,0.6502,3038.9,3037.3,0.37825026]
[1763562684600,0.6502,3038.9,3037.3,0.86415026]
[1763562684799,0.6502,3038.9,3037.4,0.90699264]
[1763562685101,0.51656803,3039.0,3037.4,1.50989264]
[1763562685310,0.51656803,3039.0,3037.5,0.4859]
[1763562685508,0.51656803,3039.0,3037.6,0.117]
[1763562685735,0.51656803,3039.0,3037.6,0.3164]
[1763562685936,0.51656803,3039.0,3038.0,0.90699264]
[1763562686231,0.51656803,3039.0,3038.6,0.90699264]
[1763562686447,0.51656803,3039.0,3038.9,0.90699264]
[1763562686598,0.51656803,3039.0,3038.9,1.39289264]
[1763562686801,0.002,3039.3,3038.5,6.90068033]
[1763562686996,0.002,3039.3,3038.6,1.39289264]
[1763562687297,0.002,3039.3,3037.9,6.90068033]
[1763562687519,0.002,3039.3,3038.0,0.90699264]
[1763562687720,0.482,3039.3,3038.0,0.90699264]
[1763562687919,0.482,3039.3,3037.3,7.38658033]
[1763562688106,0.44663324,3039.2,3037.3,7.38658033]
[1763562688312,0.44663324,3039.2,3037.4,1.06790021]
[1763562688509,0.48,3039.1,3037.4,1.97489285]
[1763562688744,0.04113195,3039.0,3037.4,1.06790021]
[1763562688948,0.405504,3038.9,3036.1,7.09868033]
[1763562689156,0.405504,3038.9,3036.2,0.4859]
[1763562689157,1.076504,3038.9,3036.2,0.4859]
[1763562689368,0.48,3038.8,3036.7,6.90068033]
[1763562689664,0.4792,3038.8,3036.8,0.90699264]
[1763562689830,0.04113601,3038.7,3036.9,0.117]
[1763562690031,0.51669598,3038.3,3036.9,0.6029]
[1763562690235,0.405504,3038.6,3036.7,6.90068033]
[1763562690436,0.04113871,3038.5,3036.8,0.69006803]
[1763562690650,0.405504,3038.6,3036.8,1.59706067]
[1763562690837,0.191,3038.9,3036.9,0.4859]
[1763562691034,0.191,3038.9,3036.9,1.39289264]
[1763562691579,0.002,3039.3,3037.4,0.90699264]
[1763562691780,0.48,3039.2,3037.5,0.8977673]
[1763562691987,0.48,3039.2,3037.6,0.00783846]
[1763562692165,0.002,3039.3,3038.0,0.90699264]
[1763562692640,0.48,3039.2,3037.6,3.97736923]
[1763562692839,0.002,3039.3,3037.7,0.4859]
[1763562693044,0.002,3039.3,3038.2,6.90068033]
[1763562693247,0.002,3039.3,3038.3,1.59706067]
[1763562693457,0.002,3039.3,3038.3,2.08296067]
[1763562693977,0.482,3039.3,3038.3,0.69006803]
[1763562694144,0.482,3039.3,3037.8,0.4859]
[1763562694145,0.673,3039.3,3037.8,0.4859]
[1763562694344,0.04112924,3039.2,3037.7,0.90699264]
[1763562694575,0.04112924,3039.2,3037.6,7.10008033]
[1763562694576,0.405504,3039.1,3036.5,0.4859]
[1763562694744,1.03859577,3039.3,3037.0,6.90068033]
[1763562694945,1.03859577,3039.3,3038.4,0.90699264]
[1763562694946,0.002,3039.3,3038.4,0.90699264]
[1763562695148,0.002,3039.3,3039.2,0.1994]
[1763562695647,0.002,3039.3,3038.5,0.4859]
[1763562695648,0.002,3039.3,3038.4,0.90699264]
[1763562695854,0.193,3039.3,3038.0,7.38658033]
[1763562696153,0.673,3039.3,3037.7,0.1994]
[1763562696350,0.04112924,3039.2,3037.7,0.1994]
[1763562696591,0.48,3039.2,3037.7,0.1994]
[1763562697106,0.405504,3039.0,3036.9,0.1994]
[1763562697284,0.405504,3038.8,3037.8,0.001]
[1763562697447,0.405504,3038.6,3037.8,0.001]
[1763562697783,0.1803,3037.9,3037.8,0.001]
[1763562698161,0.6331,3037.9,3037.8,0.001]
[1763562698357,0.405504,3037.8,3037.4,0.001]
[1763562698549,0.4528,3037.8,3037.4,0.001]
[1763562698984,0.405504,3037.7,3037.4,0.001]
[1763562699170,0.4528,3037.6,3037.4,0.001]
[1763562699911,0.4528,3038.6,3037.4,0.001]
[1763562700200,1.12746103,3039.1,3037.5,0.4539]
[1763562700201,0.4528,3039.1,3037.5,0.4539]
[1763562700347,0.04113195,3039.0,3037.5,0.4539]
[1763562700562,0.4528,3039.0,3037.5,0.4539]
[1763562700788,0.0411333,3038.9,3037.4,0.001]
[1763562701106,0.1803,3037.5,3037.4,0.001]
[1763562701315,0.1803,3037.5,3035.5,0.3992458]
[1763562701316,0.405504,3037.4,3035.5,0.3992458]
[1763562701516,0.405504,3037.2,3035.5,0.001]
[1763562702114,0.405504,3037.2,3035.5,6.58966685]
[1763562702115,0.4528,3037.1,3035.5,6.58966685]
[1763562702280,0.4528,3037.1,3035.6,0.4539]
[1763562702593,0.4528,3037.1,3035.5,0.90799264]
[1763562702766,0.4528,3037.1,3035.5,7.950593]
[1763562702968,0.4528,3037.1,3035.6,1.95895733]
[1763562703174,0.405504,3037.0,3035.5,0.001]
[1763562703484,0.68373509,3036.9,3035.5,0.001]
[1763562703669,0.51702301,3036.7,3035.5,0.001]
[1763562704076,0.4528,3036.6,3035.5,0.001]
[1763562704381,0.405504,3036.5,3035.5,0.001]
[1763562704582,0.585804,3036.5,3035.5,0.001]
[1763562704791,0.405504,3036.3,3035.5,0.001]
[1763562705181,0.405504,3036.1,3035.5,0.001]
[1763562705388,0.405504,3036.1,3035.2,0.001]
[1763562705686,1.25933591,3035.6,3034.9,0.001]
[1763562706094,2.14399155,3036.0,3034.9,0.001]
[1763562706095,0.91804117,3035.5,3034.9,0.001]
[1763562706291,0.6331,3035.9,3034.9,0.001]
[1763562706677,0.405504,3035.7,3034.9,0.001]
[1763562707300,0.1803,3035.9,3034.9,0.001]
[1763562707301,0.405504,3035.5,3034.9,0.001]
[1763562707703,0.405504,3035.3,3034.9,0.001]
[1763562708206,0.405504,3035.6,3034.9,0.001]
[1763562708371,0.405504,3035.7,3034.9,0.001]
[1763562708878,0.4528,3035.6,3034.9,0.001]
[1763562709096,0.405504,3035.5,3034.9,0.001]
[1763562709469,0.4528,3035.4,3034.9,0.001]
[1763562709669,0.4528,3035.8,3034.9,0.001]
[1763562709872,0.1803,3036.5,3034.9,0.4549]
[1763562710107,0.51702301,3036.7,3036.4,0.1993]
[1763562710471,0.51702301,3036.7,3036.6,4.20014946]
[1763562710668,0.4528,3039.1,3036.7,0.90699264]
[1763562711003,0.49393059,3039.1,3037.1,6.90068033]
[1763562711503,0.49393059,3039.1,3036.6,1.50473023]
[1763562711717,0.04113195,3039.0,3036.7,0.4539]
[1763562712209,0.4528,3038.9,3036.7,0.4539]
[1763562712371,0.4528,3038.9,3036.8,0.28656229]
[1763562712699,0.405504,3038.7,3036.7,0.4539]
[1763562712902,0.405504,3038.5,3036.7,0.4539]
[1763562713102,0.04114007,3038.4,3036.7,0.4539]
[1763562713289,0.858304,3038.5,3036.7,3.74694605]
[1763562713491,0.04114007,3038.4,3036.8,0.70400879]
[1763562713803,0.04114007,3038.4,3036.7,0.4539]
[1763562713804,0.49394007,3038.4,3036.7,0.4539]
[1763562714004,0.4528,3039.0,3036.8,0.90699264]
[1763562714219,0.4528,3039.0,3037.1,6.90068033]
[1763562714408,0.04112924,3039.2,3037.2,0.4539]
[1763562714708,0.4528,3039.2,3037.3,6.5847957]
[1763562714912,0.1922,3039.3,3037.8,0.90699264]
[1763562715217,0.002,3039.0,3038.3,6.90068033]
[1763562715587,0.002,3039.0,3037.8,0.117]
[1763562715588,0.002,3039.0,3038.9,6.90068033]
[1763562715791,0.0012,3039.3,3039.0,1.31249664]
[1763562715985,0.0012,3039.3,3039.0,1.76639664]
[1763562716195,0.0012,3039.3,3039.2,0.405504]
[1763562716385,0.6331,3041.9,3039.2,0.405504]
[1763562716620,0.04109408,3041.8,3039.7,0.90699264]
[1763562716919,0.4528,3041.5,3039.6,6.90068033]
[1763562717288,0.4528,3041.5,3039.7,1.36089264]
[1763562717489,0.1803,3041.9,3039.8,0.8261573]
[1763562717737,0.4528,3042.1,3040.3,0.90699264]
[1763562717946,0.4528,3042.1,3039.3,13.2779252]
[1763562717947,0.4528,3041.1,3039.2,0.4539]
[1763562718234,0.4528,3040.9,3038.7,6.90068033]
[1763562718523,0.4528,3040.9,3038.9,0.90699264]
[1763562718821,0.405504,3041.6,3039.3,6.90068033]
[1763562719020,0.4528,3040.7,3039.3,6.90068033]
[1763562719320,0.4528,3040.7,3039.0,0.41977653]
[1763562719523,0.4528,3040.3,3039.1,6.90068033]
[1763562719722,0.4528,3040.3,3038.9,0.90699264]
[1763562719895,0.002,3040.4,3038.9,1.36089264]
[1763562720091,0.002,3040.4,3039.4,6.90068033]
[1763562720285,0.002,3040.4,3039.0,0.4539]
[1763562720286,0.1823,3040.4,3039.0,0.4539]
[1763562720808,0.1823,3040.4,3039.0,0.73545803]
[1763562720995,0.4528,3040.3,3038.8,0.90699264]
[1763562721194,0.002,3040.4,3039.3,6.90068033]
[1763562721396,0.002,3040.4,3039.4,0.90699264]
[1763562721595,0.002,3040.4,3038.7,6.90068033]
[1763562721596,0.6351,3040.4,3038.7,6.90068033]
[1763562721918,0.405504,3040.3,3038.1,6.90068033]
[1763562722119,0.405504,3040.2,3037.4,0.70386957]
[1763562722306,0.405504,3040.2,3038.0,0.90699264]
[1763562722512,0.405504,3040.0,3038.1,0.7807673]
[1763562722718,0.04111977,3039.9,3038.1,0.7807673]
[1763562723038,0.1803,3038.2,3036.8,3.7468037]
[1763562723241,0.405504,3039.0,3036.7,6.90068033]
[1763562723407,0.1803,3038.1,3036.3,0.001]
[1763562723609,0.405504,3038.0,3036.3,0.001]
[1763562723832,0.1803,3036.7,3036.3,0.001]
[1763562724352,0.1803,3037.2,3036.3,0.001]
[1763562724529,0.6331,3037.7,3036.3,0.001]
[1763562724865,1.12746103,3039.7,3036.3,0.001]
[1763562724866,0.1803,3040.0,3037.0,6.90068033]
[1763562725004,0.51671778,3037.5,3037.1,1.59706067]
[1763562725203,0.51671778,3037.5,3036.3,0.406504]
[1763562725204,0.51671778,3037.5,3037.2,0.00786523]
[1763562725439,0.4528,3038.9,3036.9,0.1993]
[1763562725639,0.5167705,3038.1,3036.9,0.1993]
[1763562725940,0.405504,3038.8,3036.9,0.6532]
[1763562726102,0.1803,3038.3,3036.6,0.90799264]
[1763562726308,0.1803,3038.3,3036.7,0.7808673]
[1763562726614,0.405504,3038.1,3036.6,0.001]
[1763562726813,0.4528,3038.2,3036.6,0.001]
[1763562727013,0.4528,3038.1,3036.6,0.001]
[1763562727417,0.4528,3038.1,3036.7,3.29304837]
[1763562727741,0.4528,3038.1,3036.7,0.90699264]
[1763562727915,0.4528,3038.1,3036.6,0.001]
[1763562728118,0.405504,3038.0,3036.6,0.37582174]
[1763562728441,0.405504,3038.0,3036.6,0.001]
[1763562728640,0.51689213,3037.7,3036.6,0.001]
[1763562728845,0.405504,3037.6,3036.6,0.001]
[1763562729136,0.877604,3037.6,3036.6,0.001]
[1763562729642,0.405504,3037.4,3036.6,0.001]
[1763562730012,0.405504,3037.3,3036.6,0.001]
[1763562730441,0.405504,3037.1,3036.6,0.001]
[1763562730849,0.405504,3036.9,3036.3,0.001]
[1763562731023,0.405504,3036.9,3036.0,0.001]
[1763562731223,0.405504,3036.7,3034.9,0.001]
[1763562731554,0.1946,3035.0,3034.9,0.001]
[1763562731915,1.072204,3035.0,3033.2,0.1821]
[1763562732143,0.405504,3034.9,3033.1,0.0691]
[1763562732449,0.51737835,3034.6,3033.1,0.5309]
[1763562732639,0.4721,3034.9,3033.1,3.82783379]
[1763562732824,0.1946,3035.0,3033.1,3.82783379]
[1763562732825,0.1946,3035.0,3033.2,0.71248861]
[1763562733027,0.1946,3035.0,3033.2,1.17428861]
[1763562733239,0.1946,3035.9,3033.7,0.90699264]
[1763562733548,0.6667,3035.9,3033.8,0.4618]
[1763562733759,0.1946,3036.3,3034.3,0.90699264]
[1763562733913,0.1946,3036.9,3034.9,0.90699264]
[1763562734118,0.4721,3038.2,3036.1,0.90699264]
[1763562734417,0.1803,3038.3,3035.9,0.001]
[1763562734418,0.6524,3038.3,3036.6,6.90068033]
[1763562734624,0.6524,3038.3,3036.7,3.9831164]
[1763562734841,0.6524,3038.3,3036.7,4.4449164]
[1763562735152,0.4721,3038.2,3036.7,0.69006803]
[1763562735353,0.4721,3038.2,3036.2,0.4618]
[1763562735354,0.4721,3038.2,3036.6,6.58629889]
[1763562735758,0.04114413,3038.1,3035.9,0.001]
[1763562735964,0.405504,3037.8,3035.9,0.001]
[1763562736254,0.405504,3037.6,3035.9,0.001]
[1763562736463,0.51325226,3037.5,3035.9,0.001]
[1763562736620,0.4721,3037.5,3035.9,0.33050662]
[1763562736825,0.1946,3037.4,3035.9,0.001]
[1763562737026,0.51325226,3037.5,3036.0,0.4618]
[1763562737027,0.4721,3037.5,3036.0,0.4618]
[1763562737334,0.4721,3037.5,3036.1,0.1821]
[1763562737523,0.51688805,3037.9,3036.2,0.4618]
[1763562737727,0.51688805,3037.9,3036.3,0.41337768]
[1763562738065,0.51688805,3037.9,3036.8,0.90699264]
[1763562738565,0.51688805,3037.9,3037.1,0.90699264]
[1763562738865,0.1803,3040.0,3037.8,0.1821]
[1763562738866,0.4721,3039.5,3037.8,0.1821]
[1763562739067,0.4721,3039.5,3037.3,6.90068033]
[1763562739068,0.5166815,3039.1,3037.3,0.4618]
[1763562739252,0.5166815,3039.1,3037.4,0.4618]
[1763562739455,0.4721,3039.3,3037.4,0.4618]
[1763562739857,0.04112924,3039.2,3037.4,0.4618]
[1763562740056,0.04112924,3039.2,3036.7,1.55089264]
[1763562740370,0.877604,3039.1,3036.8,0.8451573]
[1763562740677,0.405504,3038.9,3036.4,3.7551652]
[1763562740969,0.405504,3038.7,3036.4,0.4618]
[1763562741155,0.405504,3038.5,3036.4,0.4618]
[1763562741364,0.1946,3038.8,3036.5,0.405504]
[1763562741682,0.4721,3039.6,3038.0,1.31249664]
[1763562741844,0.002,3040.1,3038.2,0.405504]
[1763562742034,0.002,3040.1,3038.7,0.405504]
[1763562742440,0.002,3040.1,3039.2,1.31249664]
[1763562742787,0.002,3040.1,3039.5,0.90699264]
[1763562742935,0.002,3040.4,3039.5,0.90699264]
[1763562742936,0.002,3040.4,3039.7,5.78369379]
[1763562743143,0.6667,3042.2,3040.4,0.90699264]
[1763562743347,0.6667,3042.2,3040.4,1.08909264]
[1763562743555,0.4721,3041.7,3039.9,0.405504]
[1763562743874,0.1946,3042.2,3039.7,0.90699264]
[1763562743875,0.4721,3041.1,3039.7,0.90699264]
[1763562744173,0.4721,3041.1,3039.3,3.38991111]
[1763562744174,0.405504,3041.3,3039.5,0.4845]
[1763562744375,0.4504,3042.0,3040.3,0.90699264]
[1763562744547,0.4504,3042.0,3040.4,0.66906864]
[1763562744737,0.4504,3041.5,3039.7,0.90699264]
[1763562745086,0.4504,3041.5,3039.6,0.90699264]
[1763562745377,0.67993937,3043.0,3039.6,0.90699264]
[1763562745378,0.645,3043.6,3040.3,1.31249664]
[1763562745597,0.6496,3043.1,3041.3,0.90699264]
[1763562746001,0.49147788,3043.0,3041.3,0.90699264]
[1763562746206,0.51605465,3042.7,3040.9,0.405504]
[1763562746355,0.04107923,3042.9,3041.0,0.4845]
[1763562746553,0.49147788,3043.0,3041.0,1.39149264]
[1763562746756,0.49147788,3043.0,3041.2,0.405504]
[1763562746951,0.1992,3043.1,3041.2,6.18919779]
[1763562747164,0.49147788,3043.0,3041.3,0.75806904]
[1763562747506,0.405504,3042.9,3040.7,0.48216753]
[1763562747658,0.405504,3042.7,3040.6,4.19347192]
[1763562747965,0.49148058,3042.8,3040.7,0.405504]
[1763562748166,0.6496,3044.1,3042.4,5.78369379]
[1763562748406,0.4504,3045.6,3043.1,0.405504]
[1763562748566,0.4504,3045.2,3043.0,5.78369379]
[1763562748886,0.4504,3045.2,3043.1,0.405504]
[1763562749087,0.4914482,3045.2,3043.1,0.405504]
[1763562749321,0.51568893,3044.7,3043.7,0.405504]
[1763562749495,0.51568893,3044.7,3044.3,0.90699264]
[1763562749659,0.002,3045.3,3044.4,0.4845]
[1763562749991,0.002,3045.3,3044.9,0.90699264]
[1763562750192,0.002,3045.3,3045.2,0.536404]
[1763562750378,0.4504,3047.0,3045.2,0.536404]
[1763562750579,0.1992,3048.0,3046.0,0.405504]
[1763562750781,0.1992,3048.0,3046.1,0.69717077]
[1763562750782,0.49141184,3047.9,3046.1,0.69717077]
[1763562751100,0.1992,3046.2,3043.2,0.1969]
[1763562751256,0.405504,3046.0,3043.4,5.78369379]
[1763562751461,0.002,3044.7,3044.6,5.78369379]
[1763562751657,0.002,3044.7,3044.6,6.69068643]
[1763562751868,0.002,3044.7,3044.6,7.58069043]
[1763562752070,0.4504,3047.6,3045.0,0.1969]
[1763562752273,0.6496,3048.0,3045.5,6.18919779]
[1763562752497,0.49141184,3047.9,3045.6,0.61891978]
[1763562752814,0.49141184,3047.9,3045.2,0.90699264]
[1763562752961,0.51528653,3047.4,3045.3,1.007004]
[1763562753172,0.51528653,3047.4,3045.7,5.78369379]
[1763562753407,0.51528653,3047.4,3045.4,0.4845]
[1763562753408,0.51528653,3047.4,3046.4,0.90699264]
[1763562753608,0.51528653,3047.4,3045.5,0.4845]
[1763562753816,0.51528653,3047.4,3046.1,0.90699264]
[1763562754016,0.4504,3047.8,3046.2,0.66906864]
[1763562754219,0.4913957,3049.1,3046.1,0.90699264]
[1763562754422,0.10199999,3050.8,3046.2,0.4845]
[1763562754423,0.49139704,3049.0,3046.2,0.4845]
[1763562754713,0.49139704,3049.0,3045.8,0.4845]
[1763562754714,0.405504,3048.7,3045.8,0.4845]
[1763562754912,0.405504,3048.5,3045.9,0.405504]
[1763562755076,0.04100511,3048.4,3045.9,0.890004]
[1763562755272,0.04100511,3048.4,3046.2,5.78369379]
[1763562755476,0.4504,3048.5,3046.3,1.89086602]
[1763562755711,0.49140511,3048.4,3046.3,0.57836938]
[1763562756030,0.405504,3048.3,3045.9,0.4845]
[1763562756323,0.44651046,3048.3,3045.9,0.4845]
[1763562756532,0.405504,3048.1,3045.9,0.4845]
[1763562756845,0.405504,3047.9,3045.0,5.98059379]
[1763562757023,0.4504,3047.9,3046.0,0.4845]
[1763562757185,0.4504,3047.9,3045.1,1.08255938]
[1763562757385,0.405504,3047.7,3044.4,0.4845]
[1763562757589,0.405504,3047.8,3044.4,0.4845]
[1763562757913,0.405504,3047.6,3044.4,7.05392771]
[1763562758118,0.4827,3047.7,3044.4,0.4845]
[1763562758322,0.405504,3047.5,3044.5,0.4735]
[1763562758484,0.04101857,3047.4,3044.6,0.37582195]
[1763562758681,0.405504,3047.3,3044.6,0.90699264]
[1763562758888,0.405504,3047.1,3044.6,1.38049264]
[1763562759111,0.4827,3047.3,3044.7,0.4735]
[1763562759334,0.405504,3048.0,3044.9,0.90699264]
[1763562759535,0.04101184,3047.9,3045.0,0.405504]
[1763562759688,0.405504,3047.8,3045.0,0.4735]
[1763562760040,0.405504,3047.6,3045.0,0.73551864]
[1763562760344,0.1899,3045.1,3043.2,5.98059379]
[1763562760483,0.405504,3045.0,3042.9,0.4735]
[1763562760683,0.405504,3045.0,3042.6,5.78369379]
[1763562760684,0.405504,3044.9,3042.6,6.25719379]
[1763562760905,0.405504,3044.9,3042.7,0.68355632]
[1763562761184,0.405504,3044.7,3042.6,0.4735]
[1763562761399,0.405504,3044.5,3042.0,9.26787271]
[1763562761583,0.405504,3044.5,3042.0,9.74140476]
[1763562761786,0.405504,3044.3,3042.1,0.90699264]
[1763562761995,0.405504,3044.3,3042.1,1.38049264]
[1763562762195,0.1899,3045.1,3042.1,1.38049264]
[1763562762196,0.6726,3045.1,3042.8,0.90699264]
[1763562762395,0.405504,3045.0,3042.2,1.86707084]
[1763562762629,0.888204,3045.0,3042.3,0.4735]
[1763562762787,0.888204,3045.0,3042.4,3.28687877]
[1763562762989,0.4827,3044.9,3042.5,0.37603788]
[1763562763322,0.405504,3044.8,3042.5,0.84953788]
[1763562763697,0.405504,3044.6,3042.2,1.39357084]
[1763562763899,0.405504,3044.6,3042.3,0.4735]
[1763562764119,0.1899,3045.1,3041.5,5.78369379]
[1763562764120,0.405504,3044.4,3041.5,5.78369379]
[1763562764479,1.38969264,3044.3,3041.3,3.4849676]
[1763562764719,0.90699264,3044.1,3041.3,0.1969]
[1763562765041,0.90699264,3044.1,3040.8,5.78369379]
[1763562765203,0.90699264,3043.7,3040.7,0.191]
[1763562765586,0.4827,3043.6,3040.3,0.4735]
[1763562765801,0.4827,3043.6,3039.7,3.28974537]
[1763562765802,0.90699264,3043.1,3039.7,0.4735]
[1763562765997,0.66906864,3043.0,3039.8,0.4735]
[1763562766199,0.66906864,3043.0,3040.1,0.90699264]
[1763562766200,1.34166864,3043.0,3040.1,0.90699264]
[1763562766405,0.888204,3042.9,3040.1,0.90699264]
[1763562766652,0.888204,3042.9,3040.2,0.4735]
[1763562766802,0.405504,3042.7,3040.2,0.4735]
[1763562767139,0.4827,3042.8,3040.2,7.1700024]
[1763562767299,0.4827,3042.7,3040.3,2.20236226]
[1763562767499,0.405504,3042.6,3040.2,0.4735]
[1763562767728,0.405504,3042.4,3039.8,6.57938022]
[1763562767928,0.405504,3042.4,3039.9,1.38049264]
[1763562768246,0.4827,3043.9,3041.7,5.78369379]
[1763562768446,0.4827,3043.9,3041.2,1.31249664]
[1763562768649,0.4827,3043.9,3041.4,6.57591898]
[1763562768863,0.4827,3043.9,3041.5,0.90699264]
[1763562769153,0.4827,3043.9,3041.6,0.405504]
[1763562769360,0.4827,3043.9,3041.8,0.90699264]
[1763562769513,0.4827,3043.9,3041.9,0.405504]
[1763562769858,0.4827,3043.9,3041.9,0.4735]
[1763562770012,0.4827,3043.9,3041.9,1.18991864]
[1763562770530,0.04106708,3043.8,3041.9,1.18991864]
[1763562770720,0.4827,3043.9,3042.2,0.90699264]
[1763562770920,0.4827,3044.6,3042.5,0.405504]
[1763562771142,0.1899,3045.1,3043.0,1.31249664]
[1763562771308,0.1899,3045.1,3042.3,0.4735]
[1763562771309,0.1899,3046.2,3043.6,1.31249664]
[1763562771509,0.84201424,3047.6,3044.3,0.405504]
[1763562771717,0.1899,3047.1,3044.9,0.405504]
[1763562771915,0.04102395,3047.0,3044.9,0.405504]
[1763562772110,0.1899,3047.1,3045.4,0.90699264]
[1763562772312,0.4827,3047.0,3045.1,0.405504]
[1763562772507,0.1899,3047.1,3045.2,0.4735]
[1763562772751,0.6726,3047.1,3045.2,0.4735]
[1763562772951,0.52372395,3047.0,3045.2,0.4735]
[1763562773117,0.51447551,3047.0,3045.2,0.4735]
[1763562773312,0.47345156,3047.0,3044.6,0.191]
[1763562773517,0.405504,3046.9,3044.6,1.09799264]
[1763562773726,0.47345156,3047.0,3044.6,0.62926039]
[1763562773927,0.51539622,3046.5,3044.7,0.90699264]
[1763562774251,0.51539622,3046.5,3044.8,0.405504]
[1763562774452,0.1899,3047.1,3043.9,5.78369379]
[1763562774638,0.405504,3047.0,3044.1,0.191]
[1763562774840,0.405504,3046.8,3044.1,3.47602847]
[1763562775037,0.405504,3046.6,3044.1,1.4928481]
[1763562775354,0.405504,3046.6,3043.3,5.78369379]
[1763562775355,7.03121203,3046.4,3043.3,0.4735]
[1763562775651,0.405504,3046.2,3043.3,0.4735]
[1763562775872,1.31249664,3045.7,3043.1,0.0422]
[1763562776076,0.405504,3045.5,3043.1,0.0422]
[1763562776376,0.405504,3045.3,3043.1,3.32830943]
[1763562776540,0.888204,3045.5,3043.1,0.0422]
[1763562776743,0.888204,3045.5,3042.7,3.76000166]
[1763562776942,0.405504,3045.3,3042.8,0.95436954]
[1763562777178,0.405504,3045.3,3042.8,1.42786954]
[1763562777472,0.405504,3045.1,3042.9,0.4735]
[1763562777877,0.51566649,3044.7,3043.0,0.405504]
[1763562778063,0.405504,3045.0,3042.9,0.4735]
[1763562778266,0.1899,3044.6,3042.9,0.70698622]
[1763562778679,0.4827,3044.5,3042.9,0.70698622]
[1763562778978,0.4827,3044.5,3043.0,0.90699264]
[1763562779180,0.04105899,3044.4,3042.9,0.70698622]
[1763562779384,0.405504,3044.3,3042.3,0.4735]
[1763562779770,0.405504,3044.1,3042.4,3.28687877]
[1763562779971,0.405504,3044.1,3041.8,3.28751127]
[1763562780175,0.405504,3043.9,3041.9,0.90712051]
[1763562780378,0.52376438,3044.0,3041.9,1.38062051]
[1763562780379,0.4827,3044.0,3041.9,1.38062051]
[1763562780582,0.4827,3045.3,3043.0,0.90699264]
[1763562780782,0.4827,3046.6,3044.2,0.90699264]
[1763562780951,0.4827,3046.4,3044.3,0.4735]
[1763562781147,0.5154529,3045.8,3044.4,0.405504]
[1763562781365,0.5154529,3045.8,3044.4,0.879004]
[1763562781689,0.5154529,3045.8,3045.7,0.596504]
[1763562781861,0.1899,3047.6,3045.8,0.405504]
[1763562782053,0.51523259,3046.4,3045.9,0.4735]
[1763562782254,0.52371722,3047.5,3045.9,0.4735]
[1763562782597,0.52371722,3047.5,3046.0,0.4735]
[1763562782598,0.51525229,3047.4,3046.0,0.4735]
[1763562782889,0.51525229,3047.4,3046.6,1.31249664]
[1763562783207,0.51525229,3047.4,3046.2,3.40077854]
[1763562783387,0.51525229,3047.4,3046.6,1.09799264]
[1763562783586,0.1899,3048.7,3046.7,0.405504]
[1763562783903,0.51703546,3048.5,3046.7,0.879004]
[1763562784105,0.51703546,3048.5,3047.8,1.31249664]
[1763562784332,0.002,3048.8,3048.0,0.405504]
[1763562784595,0.002,3050.1,3047.8,2.14011568]
[1763562784596,0.51481496,3049.6,3048.8,0.90699264]
[1763562784758,0.002,3050.1,3049.1,0.90699264]
[1763562784962,0.002,3050.1,3048.9,0.4735]
[1763562785186,0.002,3050.1,3049.0,0.90699264]
[1763562785386,0.002,3050.1,3049.1,0.405504]
[1763562785601,0.002,3050.1,3049.1,0.879004]
[1763562785901,0.002,3050.1,3050.0,0.189]
[1763562786070,0.002,3050.5,3050.0,0.189]
[1763562786071,0.002,3050.5,3050.0,0.7805]
[1763562786391,0.002,3050.5,3050.4,1.31249664]
[1763562786597,0.002,3050.5,3050.1,0.4735]
[1763562786805,0.002,3050.5,3049.5,0.596504]
[1763562787041,0.002,3050.5,3049.4,0.4735]
[1763562787164,0.002,3050.5,3050.1,0.90699264]
[1763562787507,0.002,3050.8,3050.3,0.405504]
[1763562787666,0.002,3050.8,3050.7,1.31249664]
[1763562787861,0.002,3050.8,3050.7,1.38749264]
[1763562788074,0.9493928,3052.3,3050.7,0.90699264]
[1763562788397,0.1899,3054.4,3050.8,0.886004]
[1763562788585,0.479,3053.5,3051.3,1.31249664]
[1763562788788,0.1899,3054.4,3052.4,5.78369379]
[1763562788991,0.479,3054.2,3052.5,1.31249664]
[1763562789186,0.1899,3054.4,3051.9,0.95649264]
[1763562789187,0.479,3053.6,3051.9,0.95649264]